Cogmind - Beta 16 @@@ ROGUE MODE // 2025.11.07 @ 09:02:53 Player: Red Box Result: Destroyed by S-10 Pest with Light Assault Rifle Performance ------------- Evolutions (0) 0 Regions Visited (3) 600 Robots Destroyed (38) 190 Value Destroyed (762) 762 Prototype IDs (3) 60 Alien Tech Used (0) 0 Bonus (-6) -6 TOTAL SCORE: 1606 Bonus ------- Follower Combat Kills 14 Friendly Fire -20 Cogmind --------- Core Integrity 0/250 Matter 280/300 Energy 224/250 System Corruption 0% Temperature Cool (0) Movement Rolling (100) Location -10/Subcaves Parts ------- > --- POWER (1) -------- Ion Engine > --- PROPULSION (2) --- Compact Wheel Compact Wheel > --- UTILITY (2) ------ Large Storage Unit Light Armor Plating > --- WEAPON (2) ------- EM Pulse Gun EM Pulse Gun > --- INVENTORY (15) --- Subdweller Power Source Fission Core Light Treads Light Treads Subdweller Monowheel Cooling System Machine Analyzer Experimental Sensor Array Improved Terrain Scanner EM Pulse Gun Particle Gun Subdweller Machine Gun Subdweller Machine Gun Barrage Gun Light Cannon Peak State ------------ > --- POWER ------------ Ion Engine > --- PROPULSION ------- Compact Wheel Compact Wheel > --- UTILITY ---------- Large Storage Unit Improved Terrain Scanner > --- WEAPON ----------- EM Pulse Gun EM Pulse Gun > --- INVENTORY -------- Fission Core Light Treads Light Treads Subdweller Monowheel Cooling System Experimental Sensor Array Targeting Computer Weapon Shielding EM Pulse Gun EM Pulse Gun EM Pulse Gun Particle Gun Subdweller Machine Gun Light Cannon Mining Claw [Rating: 12] Favorites ----------- Power Ion Engine Engine Ion Engine Propulsion Aluminum Leg Leg Aluminum Leg Wheel Compact Wheel Utility Large Storage Unit Device Improved Terrain Scanner Storage Large Storage Unit Protection Weapon Shielding Weapon EM Pulse Gun Energy Gun EM Pulse Gun Ballistic Gun Assault Rifle Slashing Weapon Mining Claw Build | -11 -10 -10 -10 ------- Run | Yrd Mat Min Sub Slots Evolved . | . . . . Power . | . . . . Propulsion . | . . . . Utility . | . . . . Weapon . | . . . . Parts Attached 23 | 7 11 3 2 Power 2 | 1 1 . . Engine 2 | 1 1 . . Core . | . . . . Reactor . | . . . . Propulsion 5 | 2 1 2 . Treads . | . . . . Leg 3 | 2 1 . . Wheel 2 | . . 2 . Hover . | . . . . Flight . | . . . . Utility 8 | 1 6 . 1 Device 1 | . 1 . . Storage 4 | 1 3 . . Processor . | . . . . Hackware . | . . . . Protection 3 | . 2 . 1 Artifact . | . . . . Weapon 8 | 3 3 1 1 Energy Gun 6 | 2 2 1 1 Energy Cannon . | . . . . Ballistic Gun 1 | 1 . . . Ballistic Cannon . | . . . . Launcher . | . . . . Special Weapon . | . . . . Impact Weapon . | . . . . Slashing Weapon 1 | . 1 . . Piercing Weapon . | . . . . Special Melee Weapon . | . . . . Unidentified Prototypes . | . . . . Parts Lost 5 | . 2 2 1 Power 1 | . 1 . . Propulsion 1 | . . 1 . Utility . | . . . . Weapon 3 | . 1 1 1 Highest Loss Streak 1 | . 1 1 1 To Critical Strikes . | . . . . Average Backups 11 | 7 9 14 14 Power . | 1 . . 1 Propulsion 4 | 4 4 4 3 Utility 2 | . 1 3 4 Weapon 4 | 1 3 6 6 Tool/Special . | . . . . Unused Backups 22 | . 7 . 15 Power 2 | . . . 2 Propulsion 7 | . 4 . 3 Utility 5 | . 1 . 4 Weapon 8 | . 2 . 6 Tool/Special . | . . . . Average Slot Usage (%) 97 | . 95 99 99 Engine 13 | . 13 14 14 Leg 17 | . 27 15 . Wheel 10 | . . 12 28 Device 4 | . . 6 10 Storage 14 | . 14 14 14 Protection 7 | . 10 7 3 Energy Gun 27 | . 27 28 27 Peak Build Rating 12 | 6 10 12 12 Average Rating 8 | 5 7 10 11 On Entrance 7 | . 6 10 12 Avg Prop Armor Cover (%) 8 | . . 8 . Naked Turns . | . . . . Heaviest Build 39 | 14 39 30 30 Greatest Support 32 | 20 20 32 32 Greatest Overweight (x) 2 | 2 1 2 . Average Overweight (x) . | . . . . Largest Inventory Capacity 15 | 8 15 15 15 Average Capacity 12 | 7 12 15 15 Most Carried 15 | 8 13 15 15 Average Carried 11 | 7 9 14 14 Final Capacity 15 | 8 15 15 15 Final Carried 15 | 8 13 14 15 Class Distribution -------------------- 100% | Mutant Dominant Class ---------------- Mutant | -10/Materials Mutant | -10/Mines Mutant | -10/Subcaves Resources | -11 -10 -10 -10 ----------- Run | Yrd Mat Min Sub Matter Collected 560 | 340 145 55 20 Remotely . | . . . . Salvage Created 1278 | 352 673 69 184 Parts 85 | 37 29 6 13 Haulers Intercepted 2 | . 2 . . Recyclers Shooed . | . . . . Parts Field Recycled . | . . . . Retrieved Matter . | . . . . Parts Self-Destructed 2 | . . . 2 Prevented 6 | . . . 6 Parts Restored . | . . . . Kills | -11 -10 -10 -10 ------- Run | Yrd Mat Min Sub Combat Hostiles Destroyed 19 | . 10 5 4 Guns 15 | . 7 5 3 AOE 3 | . 2 . 1 Classes Destroyed 10 | 3 3 2 2 Worker 4 | 4 . . . Tunneler 9 | 9 . . . Hauler 2 | . 2 . . Recycler 1 | 1 . . . Watcher 3 | . 3 . . Swarmer 5 | . . 4 1 Grunt 10 | . 10 . . Sentry 1 | . . . 1 Demolisher 1 | . . 1 . Subdweller 2 | . . . 2 Best Kill Streak 4 | 4 3 2 2 Combat Bots Only 2 | . 2 2 2 Max Kills in Single Turn 1 | 1 1 1 1 Gunslinging . | . . . . Exploded 1 | . 1 . 1 Melee . | . . . . Uniques/NPCs Destroyed . | . . . . Combat | -11 -10 -10 -10 -------- Run | Yrd Mat Min Sub Hostile Shots Fired 101 | . 39 40 22 Missed 32 | . 12 14 6 Hits 69 | . 27 26 16 Projectile 69 | . 27 26 16 AOE 6 | . . 6 . Critical Strikes 1 | . . . 1 Damage Taken 1022 | . 416 377 229 Core 255 | . 108 48 99 Absorbed by Shields . | . . . . Redirected to Shielding 44 | . 23 21 . Regen/Repaired (Parts) 105 | . 105 . . Core Remaining (%) 100 | 100 . . . Volleys Fired 113 | 30 52 17 14 Largest 2 | 2 2 2 2 Hottest 80 | 80 80 80 80 Shots Fired 199 | 40 97 34 28 Gun 199 | 40 97 34 28 Cannon . | . . . . Launcher . | . . . . Special . | . . . . Kinetic 20 | 20 . . . Thermal . | . . . . Explosive . | . . . . Electromagnetic 179 | 20 97 34 28 Robot Hit Streak 9 | 9 9 4 6 Robot Miss Streak 6 | 4 6 5 2 Penetration Max . | . . . . Secondary Targets . | . . . . Shots Hit Robots 110 | 26 53 15 16 Core Hits 50 | 14 24 6 6 Critical Kills . | . . . . Critical Parts Destroyed . | . . . . Critical Strikes 1 | . . 1 . Corrupt 1 | . . 1 . Melee Attacks 1 | . 1 . . Impact . | . . . . Slashing 1 | . 1 . . Piercing . | . . . . Sneak Attacks . | . . . . Combat Hostiles . | . . . . Follow-up Attacks . | . . . . Damage Inflicted 1758 | 348 975 190 245 Guns 1499 | 348 769 190 192 Cannons . | . . . . Explosions 259 | . 206 . 53 Melee . | . . . . Ramming . | . . . . Kinetic 188 | 188 . . . Thermal 259 | . 206 . 53 Explosive . | . . . . Electromagnetic 1311 | 160 769 190 192 Impact . | . . . . Slashing . | . . . . Piercing . | . . . . Highest Corruption . | . . . . Average Corruption . | . . . . Corruption Purged . | . . . . Corruption Blocked . | . . . . Overload Shots . | . . . . Overflow Damage 15 | . 15 . . Projectiles . | . . . . Explosions 15 | . 15 . . Melee . | . . . . Knockbacks . | . . . . Impact . | . . . . Kinetic . | . . . . Secondary . | . . . . Self-Inflicted Damage 68 | . 68 . . Shots 2 | . 2 . . Rammed . | . . . . Targets Rammed . | . . . . Kicked . | . . . . Crushed . | . . . . Highest Temperature 168 | 31 168 126 . Average Temperature 49 | 6 56 50 . Received Heat Transfer 243 | . 198 18 27 Siege Activations . | . . . . Martial Activations . | . . . . Shielding Activations . | . . . . Robots Disrupted 1 | . 1 . . Combat Hostiles 1 | . 1 . . Robots Corrupted 1 | . 1 . . Combat Hostiles 1 | . 1 . . Parts Fried 11 | 2 9 . . Impact Corruptions . | . . . . Robots Melted . | . . . . Combat Hostiles . | . . . . Parts Melted . | . . . . Heat Transferred 200 | . 150 . 50 Parts Sabotaged . | . . . . Parts Stolen . | . . . . Parts Stripped . | . . . . Power Chain Reactions 4 | . 3 . 1 Alert | -11 -10 -10 -10 ------- Run | Yrd Mat Min Sub Maximum Alert Level . | . . . . Low Security (%) 100 | 100 100 100 . Level 1 . | . . . . Level 2 . | . . . . Level 3 . | . . . . Level 4 . | . . . . Level 5 . | . . . . High Security . | . . . . Max Security . | . . . . Peak Influence 144 | 12 144 73 . Initial . | . . . . Average 26 | 1 43 10 . Influence Increases 811 | 70 480 191 70 Destroy 0b10 Robot/C 380 | . 200 140 40 Destroy 0b10 Robot/NC 95 | 70 25 . . Destroy Leader 80 | . 60 20 . Allied During Kill 16 | . . 16 . Successful Hack 58 | . 58 . . Select Force Hacks 30 | . 30 . . Disable Machine 45 | . 45 . . Destroy Structure 17 | . 17 . . Lose Combat Pursuer 90 | . 45 15 30 Influence Decreases 776 | 70 480 168 58 Entered New Map 13 | . . . 13 Time Decay 733 | 70 460 168 35 Lost Part 20 | . 20 . . Lost Ally 10 | . . . 10 Squads Dispatched 3 | . 3 . . Investigation 2 | . 2 . . Extermination . | . . . . Reinforcement 1 | . 1 . . Assault . | . . . . Garrison . | . . . . Intercept . | . . . . Searches Triggered . | . . . . Construction Impeded . | . . . . Haulers Reinforced . | . . . . Active Scanning Responses . | . . . . Cargo Convoy Interrupts . | . . . . Stealth | -11 -10 -10 -10 --------- Run | Yrd Mat Min Sub Distress Signals 1 | . 1 . . Communications Jammed . | . . . . Distress Signals . | . . . . Times Spotted 37 | . 19 12 6 Peak Tracking Total 3 | . 3 3 3 Tactical Retreats 6 | . 3 1 2 Traps | -11 -10 -10 -10 ------- Run | Yrd Mat Min Sub Traps Triggered . | . . . . Indirectly . | . . . . Trap Hack Attempts . | . . . . Triggered . | . . . . Disarmed . | . . . . Reprogrammed . | . . . . Reused . | . . . . Traps Extracted . | . . . . Installed . | . . . . Triggered . | . . . . Machines | -11 -10 -10 -10 ---------- Run | Yrd Mat Min Sub Machines Disabled 3 | . 3 . . Max in Single Turn 1 | . 1 . . Machines Repaired . | . . . . Machines Dismantled . | . . . . Machines Sabotaged . | . . . . Overloaded Fab Kills . | . . . . Hacking | -11 -10 -10 -10 --------- Run | Yrd Mat Min Sub Machines Accessed 10 | . 10 . . Terminals 7 | . 7 . . Fabricators . | . . . . Repair Stations 1 | . 1 . . Recycling Units 2 | . 2 . . Scanalyzers . | . . . . Garrison Access . | . . . . Total Hacks 40 | . 40 . . Successful 29 | . 29 . . Failed 10 | . 10 . . Catastrophic 1 | . 1 . . Database Lockouts 1 | . 1 . . Manual 21 | . 21 . . Terminals 25 | . 25 . . Fabricators . | . . . . Repair Stations 10 | . 10 . . Recycling Units 5 | . 5 . . Scanalyzers . | . . . . Garrison Access . | . . . . Terminal Hacks 8 | . 8 . . Robot Analysis 2 | . 2 . . Prototype ID Bank 2 | . 2 . . Terminal Index 1 | . 1 . . Locate Traps 1 | . 1 . . Recall Investigation 1 | . 1 . . Zone Layout 1 | . 1 . . Fabricator Hacks . | . . . . Repair Station Hacks 10 | . 10 . . Scan Component 5 | . 5 . . Repair 5 | . 5 . . Recycling Unit Hacks 1 | . 1 . . Retrieve Components 1 | . 1 . . Scanalyzer . | . . . . Garrison Access Hacks . | . . . . Unauthorized Hacks 10 | . 10 . . Terminals 9 | . 9 . . Track 2 | . 2 . . Botnet 5 | . 5 . . Operators 2 | . 2 . . Fabricators . | . . . . Repair Stations . | . . . . Recycling Units 1 | . 1 . . Tunnel 1 | . 1 . . Scanalyzers . | . . . . Garrison Access . | . . . . Data Cores Recovered . | . . . . Used . | . . . . Hacking Detections 7 | . 7 . . Full Trace Events 2 | . 2 . . Feedback Events . | . . . . Feedback Blocked . | . . . . Robot Schematics Acquired . | . . . . Robots Built . | . . . . Authchips . | . . . . Time . | . . . . Total Robot Build Rating . | . . . . Part Schematics Acquired . | . . . . Parts Built . | . . . . Authchips . | . . . . Time . | . . . . Total Part Build Rating . | . . . . Part Studies Acquired . | . . . . Parts Repaired 5 | . 5 . . Time 136 | . 136 . . Parts Recycled . | . . . . Recycled Matter . | . . . . Retrieved Matter . | . . . . Retrieved Components 9 | . 9 . . Parts Scanalyzed . | . . . . Part Schematics Acquired . | . . . . Parts Damaged . | . . . . Bothacking | -11 -10 -10 -10 ------------ Run | Yrd Mat Min Sub Used RIF Installer . | . . . . Robots Hacked . | . . . . Non-combat . | . . . . Combat . | . . . . Robot Hacks Applied . | . . . . Relay Couplers Released . | . . . . Fabnet Peak Effective % . | . . . . Robots Rewired . | . . . . Allies Hacked . | . . . . Hacks Repelled . | . . . . Allies | -11 -10 -10 -10 -------- Run | Yrd Mat Min Sub Total Allies 3 | . . 3 . Largest Group 3 | . . 3 1 Highest-Rated Group 40 | . . 40 16 Highest-Rated Ally 16 | . . 16 16 Total Orders . | . . . . Ally Attacks 17 | . . 13 4 Total Damage 171 | . . 123 48 Kills 2 | . . 2 . Allies Corrupted . | . . . . Allies Melted . | . . . . Intel | -11 -10 -10 -10 ------- Run | Yrd Mat Min Sub Active Infowar (turns) 1378 | . 1 532 845 Terrain 1378 | . 1 532 845 Robot Analysis Total 2 | . 2 . . Derelict Logs Recovered 1 | . . 1 . Drone Launches . | . . . . Drone Recoveries . | . . . . Exploration | -11 -10 -10 -10 ------------- Run | Yrd Mat Min Sub Turns Passed 5075 | 737 2103 1124 1111 Spaces Moved 2408 | 367 1131 502 408 Core 9 | 9 . . . Treads . | . . . . Legs 1749 | 358 1131 260 . Wheels 650 | . . 242 408 Hover . | . . . . Flight . | . . . . Fastest Speed 50 | 50 120 100 100 Average Speed 134 | 119 145 147 100 Slowest Speed 260 | 150 190 260 100 Overloaded Moves . | . . . . Propulsion Burnouts . | . . . . Robots Hopped . | . . . . Potential Cave-ins . | . . . . Cave-ins Triggered . | . . . . Exploration Rate (%) 54 | 6 99 98 16 Regions Visited 3 Branch Regions 2 Pre-discovered Areas 1 | . 1 . . Known Exits Taken . | . . . . Unknown Exits Taken 3 | 1 1 1 . Scrap Searched 1 | . . 1 . Spaces Dug . | . . . . Terrain Destroyed 25 | . 15 . 10 Melee . | . . . . Projectile . | . . . . AOE 25 | . 15 . 10 Terrain Rammed . | . . . . Walls Destroyed . | . . . . Machines Disabled . | . . . . Actions | -11 -10 -10 -10 --------- Run | Yrd Mat Min Sub Total 4049 | 623 1490 852 1084 Wait 1433 | 210 250 324 649 Move 2405 | 366 1130 501 408 Hop . | . . . . Pick Up 43 | 9 25 4 5 Fast Attach 14 | 5 8 . 1 Attach 8 | 1 3 3 1 Detach . | . . . . Swap 11 | 2 5 2 2 Drop 21 | . 16 1 4 Fire 113 | 30 52 17 14 Melee 1 | . 1 . . Ram . | . . . . Kick . | . . . . Crush . | . . . . Escape Stasis . | . . . . Rewire . | . . . . Trap . | . . . . Miscellaneous . | . . . . Route ------- -11/Scrapyard -10/Materials (discovered 5 exits: [*Mat x3] / [*Min] / [*Sub]) -10/Mines (discovered 3 exits: [*Mat x2] / [*Sub]) -10/Subcaves (discovered 1 exit: [Rec]) History --------- Turn | Location | Event 3 | -11/Scrapyard | Discovered new exit (range 16) 738 | -11/Scrapyard | Entered Materials 753 | -10/Materials | Build established: Mutant 910 | -10/Materials | Discovered new exit (range 7) 1053 | -10/Materials | Discovered new exit (range 16) 1216 | -10/Materials | Discovered new exit (range 4) 1238 | -10/Materials | Derelicts attacked the area 1259 | -10/Materials | Central database locked down 1357 | -10/Materials | Discovered new exit (range 5) 1649 | -10/Materials | Discovered new exit (range 7) 2035 | -10/Materials | Repaired Particle Gun 2062 | -10/Materials | Repaired Ion Engine 2089 | -10/Materials | Repaired Aluminum Leg 2117 | -10/Materials | Repaired Aluminum Leg 2144 | -10/Materials | Repaired Med. Storage Unit 2841 | -10/Materials | Entered Mines 3010 | -10/Mines | Core integrity fell below 50% 3103 | -10/Mines | Learned Materials terminal intel 3187 | -10/Mines | Assembled infested the area 3192 | -10/Mines | Assisted by a Guerilla fighting off Assembled 3194 | -10/Mines | Found a damaged Exp. Sensor Array with a note attached 3198 | -10/Mines | Found Prototype Device 3276 | -10/Mines | Assisted by bots powering up and referring to "LRC-V3" 3384 | -10/Mines | Discovered new exit (range 9) 3815 | -10/Mines | Discovered new exit (range 3) 3950 | -10/Mines | Discovered new exit (range 6) 3965 | -10/Mines | Entered Subcaves 3965 | -10/Subcaves | Accompanied by 3 allies 3966 | -10/Subcaves | Ambushed by Subdwellers from Twisted Machinery 3966 | -10/Subcaves | Approached by a straggling Scientist 3984 | -10/Subcaves | Core integrity fell below 20% 4009 | -10/Subcaves | Lost 4 allies 4238 | -10/Subcaves | Shifting Twisted Machinery released Barrage Gun 4240 | -10/Subcaves | Shifting Twisted Machinery released Sub. Power Source 5004 | -10/Subcaves | Discovered new exit (range 5) 5076 | -10/Subcaves | Destroyed by S-10 Pest with Light Assault Rifle Last Messages --------------- 04133_ Corrupted Lgt. Treads self-destruct mechanism malfunctions. 04137_ Acquired 20 matter. 04138_ Corrupted Hvy. Assault Rifle self-destruct mechanism malfunctions. 04139_ Corrupted Beam Rifle self-destruct mechanism malfunctions. 04139_ Acquired Lgt. Armor Plating. Barrage Gun falls loose from the Twisted Machinery. Sub. Power Source falls loose from the Twisted Machinery. 04242_ Dropped Mining Claw. 04245_ Acquired Barrage Gun. 04251_ Dropped Imp. Terrain Scanner. 04252_ Acquired Sub. Power Source. 04335_ Dropped Weapon Shielding. 04338_ Acquired Imp. Terrain Scanner. 05004_ EXIT=FOUND 05068_ S-10 Pest destroyed. 05072_ Flight Unit fries itself beyond repair. Map ----- +----------------------------------------------------+ | ?????????????????????????????????????????????????? | | ?????????????????????????????????????????????????? | | ?????????????????????????????????????????????????? | | ?????? ?????? ???????????????????????????????????? | | ?????????#?? ????????????????????????????????????? | | ?##??????????????????????????????????????????????? | | ??? ??##?????????????????????????????????????????? | | ?????????????????????????????????????????????????? | | ???????#?????? ??????????????????????????????????? | | ????#??#?# ???????? ???? ????????????????????????? | | ???####??##??##??? ????? ????????????????????????? | | ?##?#####? ??????? ??? ????????????????????????? | | ???##??#?? ???? ? ? ???? ##??????????????????????? | | ?##??##?#? ?? ? ?? ??? ?????#????????#???????? | | #####???##???#?? ? ????? #?????????????????????? | | ####?######?#???? #?#??# #??????#????#???#?#??? | | # ### ###?#######???## [ ?##????#????????#??##? | | ## #?####""" ???##=% ???????#???#??#??????? | | ## #??#??" ??## ????????????#????????? | | ### ##?#?##? ## #??????#?##???????????? | | ### ####???#??"? #?#?#?????????????????? | | ## ##????#?#?